fUSD/lending_fUSD_20250814
["ID","MTS","AMOUNT","RATE_DAILY","PERIOD"]
[379234082,1755203443014,-598.0,0.00027277,2]
[379234084,1755203443024,-1655.0,0.00027277,2]
[379234088,1755203443033,-1296.0,0.00027277,2]
[379234091,1755203443043,-565.0,0.00027277,2]
[379234093,1755203443055,-1172.0,0.00027277,2]
[379234096,1755203443066,-893.0,0.00027277,2]
[379234098,1755203443077,-4149.0,0.00027277,2]
[379234100,1755203443086,-1254.0,0.00027277,2]
[379234102,1755203443096,-6086.0,0.00027277,2]
[379234104,1755203443108,-1000.0,0.0002728,2]
[379234106,1755203443117,-158.51319871,0.00027286,2]
[379234107,1755203443129,-10529.2766261,0.00027287,2]
[379234108,1755203443139,-723.04009218,0.00027287,2]
[379234109,1755203443148,-500.0,0.00027288,2]
[379234110,1755203443157,-500.0,0.00027288,2]
[379234111,1755203443166,-151.0,0.00027288,2]
[379234112,1755203443175,-1021.56800621,0.00027292,2]
[379234113,1755203443185,-5232.1265,0.00027297,2]
[379234114,1755203443194,-1000.0,0.00027297,2]
[379234115,1755203443202,-165.34216345,0.00027297,2]
[379234116,1755203443211,-578.58940122,0.00027297,2]
[379234117,1755203443222,-523.65949395,0.00027297,2]
[379234118,1755203443235,-488.52068234,0.00027297,5]
[379234119,1755203443244,-883.63874412,0.00027297,2]
[379234120,1755203443254,-165.29692777,0.00027297,2]
[379234121,1755203443263,-200.68510068,0.00027297,2]
[379234122,1755203443272,-2000.0,0.00027299,2]
[379234123,1755203443282,-165.7,0.000273,16]
[379234124,1755203443291,-1000.0,0.000273,2]
[379234125,1755203443301,-5126.16,0.000273,2]
[379234126,1755203443310,-150.0,0.00027314,2]
[379234127,1755203443319,-10529.2766261,0.00027329,2]
[379234128,1755203443330,-723.04009217,0.00027334,2]
[379234129,1755203443339,-158.51319871,0.00027335,2]
[379234130,1755203443348,-1000.0,0.00027337,2]
[379234131,1755203443357,-12456.8002501,0.00027339,2]
[379234132,1755203443367,-10529.2766261,0.00027339,2]
[379234133,1755203443377,-4609.0,0.00027342,2]
[379234134,1755203443387,-12456.8002501,0.00027347,2]
[379234135,1755203443396,-10529.2766261,0.00027357,2]
[379234136,1755203443406,-150.0,0.00027359,3]
[379234137,1755203443415,-207.77686672,0.00027359,3]
[379234138,1755203443424,-256.72141881,0.00027359,3]
[379234139,1755203443433,-504.0,0.00027359,3]
[379234140,1755203443442,-150.0,0.00027359,3]
[379234141,1755203443452,-150.0,0.00027359,3]
[379234142,1755203443465,-500.0,0.00027359,3]
[379234143,1755203443475,-500.0,0.00027359,3]
[379234144,1755203443486,-500.0,0.00027359,2]
[379234145,1755203443495,-150.0,0.00027359,3]
[379234146,1755203443506,-500.0,0.00027359,2]
[379234147,1755203443516,-500.0,0.00027359,3]
[379234148,1755203443526,-1000.0,0.00027366,2]
[379234149,1755203443537,-2062.0205405,0.00027367,2]
[379234150,1755203443547,-4124.0410811,0.00027367,2]
[379234151,1755203443556,-227227.033059,0.00027367,2]
[379234152,1755203443565,-292203.1182516,0.00027367,2]
[379234153,1755203443575,-98781.3441436,0.00027367,2]
[379234154,1755203443585,-12779.2344978,0.00027367,2]
[379234155,1755203443595,-38337.7034933,0.00027367,2]
[379234156,1755203443604,-150.00000001,0.0002737,4]
[379234157,1755203443613,-150.0,0.0002737,4]
[379234158,1755203443623,-150.0,0.0002737,4]
[379234159,1755203443633,-150.0,0.0002737,4]
[379234160,1755203443643,-150.0,0.0002737,4]
[379234161,1755203443652,-300.0,0.0002737,2]
[379234162,1755203443661,-500.0,0.0002737,2]
[379234163,1755203443670,-1000.0,0.0002737,2]
[379234164,1755203443680,-500.0,0.00027373,2]
[379234166,1755203443689,-500.0,0.00027373,2]
[379234167,1755203443698,-500.0,0.00027373,2]
[379234168,1755203443707,-500.0,0.00027373,2]
[379234170,1755203443716,-515.69296796,0.00027373,2]
[379234171,1755203443725,-500.0,0.00027373,2]
[379234172,1755203443734,-500.0,0.00027373,2]
[379234173,1755203443744,-500.0,0.00027373,2]
[379234174,1755203443753,-500.0,0.00027373,2]
[379234175,1755203443762,-500.0,0.00027373,2]
[379234176,1755203443771,-500.0,0.00027373,2]
[379234177,1755203443782,-500.0,0.00027373,2]
[379234178,1755203443791,-500.0,0.00027373,2]
[379234179,1755203443800,-506.49765689,0.00027373,2]
[379234180,1755203443809,-500.0,0.00027373,2]
[379234181,1755203443818,-500.0,0.00027373,2]
[379234182,1755203443827,-500.0,0.00027373,2]
[379234183,1755203443836,-516.49692153,0.00027373,2]
[379234184,1755203443846,-500.0,0.00027373,2]
[379234185,1755203443855,-500.0,0.00027373,2]
[379234186,1755203443869,-500.0,0.00027373,2]
[379234187,1755203443879,-500.0,0.00027373,2]
[379234188,1755203443888,-592.73024709,0.00027373,2]
[379234189,1755203443898,-504.53149598,0.00027373,2]
[379234190,1755203443908,-502.91827005,0.00027373,2]
[379234191,1755203443918,-323.90526316,0.00027373,2]
[379234192,1755203443929,-500.0,0.00027373,2]
[379234193,1755203443939,-500.0,0.00027373,2]
[379234194,1755203443948,-500.0,0.00027373,2]
[379234195,1755203443958,-500.0,0.00027373,2]
[379234196,1755203443967,-500.0,0.00027373,2]
[379234197,1755203443977,-500.0,0.00027373,2]
[379234198,1755203443986,-500.0,0.00027373,2]
[379234199,1755203443996,-529.61775295,0.00027373,2]
[379234200,1755203444006,-500.0,0.00027373,2]
[379234201,1755203444015,-151.0,0.00027378,3]
[379234202,1755203444025,-151.0,0.00027378,3]
[379234203,1755203444035,-151.0,0.00027378,3]
[379234204,1755203444044,-151.0,0.00027378,3]
[379234205,1755203444054,-151.0,0.00027378,3]
[379234206,1755203444063,-151.0,0.00027378,3]
[379234207,1755203444073,-151.0,0.00027378,3]
[379234208,1755203444082,-151.0,0.00027378,3]
[379234209,1755203444092,-151.0,0.00027378,3]
[379234210,1755203444101,-151.0,0.00027378,3]
[379234211,1755203444112,-190.94301137,0.00027378,3]
[379234212,1755203444130,-151.0,0.00027378,3]
[379234213,1755203444146,-151.0,0.00027378,3]
[379234214,1755203444155,-151.0,0.00027378,3]
[379234215,1755203444165,-1217.0,0.00027378,3]
[379234216,1755203444174,-151.0,0.00027378,3]
[379234217,1755203444184,-1217.0,0.00027378,3]
[379234218,1755203444194,-1217.0,0.00027378,3]
[379234219,1755203444203,-151.0,0.00027378,3]
[379234220,1755203444212,-151.0,0.00027378,3]
[379234221,1755203444221,-151.0,0.00027378,3]
[379234222,1755203444230,-1217.0,0.00027378,3]
[379234223,1755203444239,-151.0,0.00027378,3]
[379234224,1755203444258,-151.0,0.00027378,3]
[379234225,1755203444278,-1217.0,0.00027378,3]
[379234226,1755203444287,-151.0,0.00027378,3]
[379234227,1755203444296,-151.0,0.00027378,3]
[379234228,1755203444305,-151.0,0.00027378,3]
[379234229,1755203444314,-151.0,0.00027378,3]
[379234230,1755203444323,-151.0,0.00027378,3]
[379234231,1755203444332,-1217.0,0.00027378,3]
[379234232,1755203444342,-268.80732891,0.00027378,3]
[379234233,1755203444351,-200.68510068,0.00027379,2]
[379234234,1755203444360,-723.04009217,0.00027382,2]
[379234235,1755203444369,-1874.84600349,0.00027382,2]
[379234236,1755203444379,-158.51319871,0.00027385,2]
[379234237,1755203444388,-4589.6588572,0.00027387,2]
[379234238,1755203444398,-11423.1788991,0.00027387,2]
[379234239,1755203444407,-1859.8149552,0.00027387,2]
[379234240,1755203444416,-4013.81208389,0.0002739,2]
[379234241,1755203444425,-7928.68197488,0.0002739,2]
[379234242,1755203444434,-3585.78688486,0.0002739,7]
[379234243,1755203444443,-1228.031273,0.00027391,7]
[379234244,1755203444452,-382.437117,0.00027391,7]
[379234245,1755203444466,-382.437117,0.00027391,7]
[379234246,1755203444475,-243.950224,0.00027391,7]
[379234247,1755203444484,-243.950224,0.00027391,7]
[379234248,1755203444493,-264.576528,0.00027391,7]
[379234249,1755203444502,-264.576528,0.00027391,7]
[379234250,1755203444511,-484.9,0.00027391,7]
[379234251,1755203444520,-484.9,0.00027391,7]
[379234252,1755203444531,-841.143639,0.00027391,7]
[379234253,1755203444540,-841.143639,0.00027391,7]
[379234254,1755203444550,-501.203907,0.00027391,7]
[379234255,1755203444559,-501.203907,0.00027391,7]
[379234256,1755203444568,-151.0,0.00027391,7]
[379234257,1755203444577,-169.237734,0.00027391,7]
[379234258,1755203444586,-151.0,0.00027391,7]
[379234259,1755203444595,-151.0,0.00027391,7]
[379234260,1755203444604,-151.0,0.00027391,7]
[379234261,1755203444613,-151.0,0.00027391,7]
[379234262,1755203444622,-600.0,0.00027391,2]
[379234263,1755203444632,-600.0,0.00027391,2]
[379234264,1755203444641,-600.0,0.00027391,2]
[379234265,1755203444651,-600.0,0.00027391,2]
[379234266,1755203444659,-600.0,0.00027391,2]
[379234267,1755203444669,-600.0,0.00027391,2]
[379234268,1755203444678,-312.78207855,0.00027391,2]
[379234269,1755203444687,-175.261444,0.00027391,7]
[379234270,1755203444697,-175.261444,0.00027391,7]
[379234271,1755203444705,-202.24057,0.00027391,7]
[379234272,1755203444714,-462.25,0.00027392,7]
[379234273,1755203444724,-462.25,0.00027392,7]
[379234274,1755203444733,-435.180572,0.00027392,7]
[379234275,1755203444742,-500.398104,0.00027392,7]
[379234276,1755203444751,-500.398104,0.00027392,7]
[379234277,1755203444760,-435.180572,0.00027392,7]
[379234278,1755203444769,-663.674014,0.00027392,7]
[379234279,1755203444778,-663.674014,0.00027392,7]
[379234280,1755203444787,-151.0,0.00027392,7]
[379234281,1755203444796,-1851.382945,0.00027392,7]
[379234282,1755203444805,-1851.382945,0.00027392,7]
[379234283,1755203444815,-3837.091463,0.00027392,7]
[379234284,1755203444823,-3837.091463,0.00027392,7]
[379234285,1755203444832,-151.0,0.00027392,7]
[379234286,1755203444841,-713.80523,0.00027392,7]
[379234287,1755203444851,-713.80523,0.00027392,7]
[379234288,1755203444859,-603.809093,0.00027392,7]
[379234289,1755203444869,-1413.907148,0.00027392,7]
[379234290,1755203444878,-603.809093,0.00027392,7]
[379234291,1755203444887,-796.112719,0.00027392,7]
[379234292,1755203444896,-1413.907148,0.00027392,7]
[379234293,1755203444906,-796.112719,0.00027392,7]
[379234294,1755203444916,-412.437133,0.00027392,7]
[379234295,1755203444925,-280.855706,0.00027392,7]
[379234296,1755203444935,-151.0,0.00027392,7]
[379234297,1755203444944,-412.437133,0.00027392,7]
[379234298,1755203444955,-280.855706,0.00027392,7]
[379234299,1755203444965,-207.351488,0.00027392,7]
[379234300,1755203444974,-207.351488,0.00027392,7]
[379234301,1755203444983,-662.302159,0.00027392,7]
[379234302,1755203444992,-662.302159,0.00027392,7]
[379234303,1755203445003,-373.777832,0.00027392,7]
[379234304,1755203445013,-1474.284805,0.00027392,7]
[379234305,1755203445023,-373.777832,0.00027392,7]
[379234306,1755203445033,-1474.284805,0.00027392,7]
[379234307,1755203445042,-2291.804936,0.00027392,7]
[379234308,1755203445052,-2291.804936,0.00027392,7]
[379234309,1755203445061,-151.0,0.00027392,7]
[379234310,1755203445070,-258.551651,0.00027392,7]
[379234311,1755203445079,-258.551651,0.00027392,7]
[379234312,1755203445089,-2020.905764,0.00027392,7]
[379234313,1755203445098,-2020.905764,0.00027392,7]
[379234314,1755203445107,-587.580901,0.00027392,7]
[379234315,1755203445116,-587.580901,0.00027392,7]
[379234316,1755203445125,-156.151956,0.00027392,7]
[379234317,1755203445134,-7010.754294,0.00027392,7]
[379234318,1755203445144,-7010.754294,0.00027392,7]
[379234319,1755203445153,-177.604191,0.00027392,7]
[379234320,1755203445163,-177.604191,0.00027392,7]
[379234321,1755203445172,-512.23303,0.00027392,7]
[379234322,1755203445181,-512.23303,0.00027392,7]
[379234323,1755203445190,-155.888434,0.00027392,7]
[379234324,1755203445200,-155.888434,0.00027392,7]
[379234325,1755203445209,-297.580693,0.00027392,7]
[379234326,1755203445220,-297.580693,0.00027392,7]
[379234327,1755203445231,-297.580693,0.00027392,7]
[379234328,1755203445240,-297.580693,0.00027392,7]
[379234329,1755203445250,-195.551872,0.00027392,7]
[379234330,1755203445260,-195.551872,0.00027392,7]
[379234331,1755203445270,-419.288261,0.00027392,7]
[379234332,1755203445280,-419.288261,0.00027392,7]
[379234333,1755203445289,-151.0,0.00027392,7]
[379234334,1755203445298,-179.099984,0.00027392,7]
[379234335,1755203445308,-151.0,0.00027392,7]
[379234336,1755203445318,-151.0,0.00027392,7]
[379234337,1755203445328,-159.715949,0.00027392,7]
[379234338,1755203445337,-273.8437,0.00027392,7]
[379234339,1755203445346,-273.8437,0.00027392,7]
[379234340,1755203445355,-2229.548676,0.00027392,7]
[379234341,1755203445365,-1136.372699,0.00027392,7]
[379234342,1755203445374,-1136.372699,0.00027392,7]
[379234343,1755203445384,-151.0,0.00027392,7]
[379234344,1755203445393,-2229.548676,0.00027392,7]
[379234345,1755203445402,-151.0,0.00027392,7]
[379234346,1755203445410,-1136.372699,0.00027392,7]
[379234347,1755203445419,-1136.372699,0.00027392,7]
[379234348,1755203445429,-168.515403,0.00027392,7]
[379234349,1755203445438,-1228.031273,0.00027392,7]
[379234350,1755203445447,-12000.0,0.00027392,7]
[379234351,1755203445459,-12000.0,0.00027392,7]
[379234352,1755203445469,-1228.031273,0.00027392,7]
[379234353,1755203445486,-12000.0,0.00027392,7]
[379234354,1755203445499,-12000.0,0.00027392,7]
[379234355,1755203445508,-12000.0,0.00027392,7]
[379234356,1755203445517,-12000.0,0.00027392,7]
[379234357,1755203445526,-12000.0,0.00027392,7]
[379234358,1755203445537,-12000.0,0.00027392,7]
[379234359,1755203445547,-12000.0,0.00027392,7]
[379234360,1755203445556,-12000.0,0.00027392,7]
[379234361,1755203445565,-12000.0,0.00027392,7]
[379234362,1755203445575,-12000.0,0.00027392,7]
[379234363,1755203445584,-151.0,0.00027392,7]
[379234364,1755203445594,-151.0,0.00027392,7]
[379234365,1755203445604,-661.677797,0.00027392,7]
[379234366,1755203445614,-661.677797,0.00027392,7]
[379234367,1755203445623,-661.677797,0.00027392,7]
[379234368,1755203445633,-661.677797,0.00027392,7]
[379234369,1755203445642,-382.437117,0.00027392,7]
[379234370,1755203445651,-382.437117,0.00027392,7]
[379234371,1755203445660,-243.950224,0.00027392,7]
[379234372,1755203445669,-1573.810638,0.00027392,7]
[379234373,1755203445679,-243.950224,0.00027392,7]
[379234374,1755203445688,-368.972396,0.00027392,7]
[379234375,1755203445698,-368.972396,0.00027392,7]
[379234376,1755203445708,-368.972396,0.00027392,7]
[379234377,1755203445717,-368.972396,0.00027392,7]
[379234378,1755203445726,-264.576528,0.00027392,7]
[379234379,1755203445735,-1573.810638,0.00027392,7]
[379234380,1755203445744,-264.576528,0.00027392,7]
[379234381,1755203445753,-1158.736893,0.00027392,7]
[379234382,1755203445763,-1158.736893,0.00027392,7]
[379234383,1755203445772,-1158.736893,0.00027392,7]
[379234384,1755203445782,-1158.736893,0.00027392,7]
[379234385,1755203445792,-396574.11672867,0.00027392,2]
[379234391,1755203447193,-255345.32508165,0.00027392,2]
[379234392,1755203447749,-927.0,0.00027277,2]
[379234393,1755203447759,-2344.17217679,0.00027392,2]
[379234394,1755203447897,-52753.01962358,0.00027392,2]
[379234395,1755203447908,-4534.08776,0.00027392,2]
[379234396,1755203447919,-1283.44842186,0.00027392,2]
[379234397,1755203448080,-7826.69128076,0.00027392,2]
[379234398,1755203448091,-3534.90993133,0.00027392,2]
[379234399,1755203448102,-364.86800016,0.00027392,2]
[379234400,1755203448112,-1772.0439997,0.00027392,2]
[379234401,1755203449571,-68.29372056,0.00024601,2]
[379234402,1755203449583,-596.96627944,0.00024601,2]
[379234403,1755203449592,-1864.53138153,0.00026232,2]
[379234404,1755203450941,-2362.2,0.00026232,2]
[379234405,1755203450973,-179.41386236,0.00026232,2]
[379234406,1755203450984,-665.26,0.00026366,7]
[379234407,1755203450994,-74734.20762695,0.00027392,2]
[379234408,1755203451005,-855.65800931,0.00027392,2]
[379234410,1755203563427,508.2,0.00024685,30]
[379234413,1755203804710,-250.0,0.00020789,2]
[379234414,1755203804732,-300.0,0.00020789,2]
[379234415,1755203868291,2751.69844373,0.00030136,120]
[379234419,1755204172557,154.74,0.00013699,2]
[379234679,1755204337441,184.06,0.0002488,120]
[379235137,1755204607826,-301.59306221,0.00022244,2]
[379235152,1755204633068,-59.94530979,0.00022244,2]
[379235153,1755204633078,-198.92269408,0.00022356,2]
[379235154,1755204633088,-2500.0,0.00022456,2]
[379235155,1755204633098,-198.92269406,0.00022504,2]
[379235156,1755204633108,-2500.0,0.00022535,2]
[379235157,1755204633118,-304.67,0.00022613,2]
[379235158,1755204633128,-302.73,0.00022613,2]
[379235159,1755204633138,-248.95589336,0.0002265,2]
[379235160,1755204633149,-198.92269406,0.00022651,2]
[379235161,1755204633158,-198.92269406,0.00022799,2]
[379235162,1755204633168,-198.92269406,0.00022946,2]
[379235163,1755204633178,-198.92269406,0.00023094,2]
[379235164,1755204633187,-1200.0,0.00023193,2]
[379235165,1755204633197,-1000.0,0.00023194,2]
[379235166,1755204633207,-1000.0,0.00023242,2]
[379235167,1755204633217,-380.51203463,0.00023254,2]
[379235168,1755204633228,-316.0,0.00023254,2]
[379235169,1755204633240,-303.48796537,0.00023254,2]
[379235170,1755204633249,-1000.0,0.00023442,2]
[379235171,1755204633259,-150.99,0.00023442,2]
[379235172,1755204633269,-341.53,0.00023442,2]
[379235173,1755204633279,-1315.19,0.00023442,2]
[379235174,1755204633288,-9591.93568326,0.00023442,2]
[379235175,1755204633302,-408.05431674,0.00023442,2]
[379235176,1755204633312,-1000.0,0.0002351,2]
[379235177,1755204633321,-1000.0,0.00023553,2]
[379235178,1755204633331,-1000.0,0.00023624,2]
[379235179,1755204633341,-154.74,0.00023973,2]
[379235180,1755204633350,-1000.0,0.00024014,2]
[379235181,1755204633359,-504.0001734,0.00024021,2]
[379235182,1755204633369,-1000.0,0.00024225,2]
[379235183,1755204633378,-1000.0,0.00024287,2]
[379235184,1755204633388,-1000.0,0.00024417,2]
[379235185,1755204633397,-162.9,0.00024492,2]
[379235186,1755204633406,-2500.0,0.00024592,2]
[379235187,1755204633416,-150.00000001,0.00024633,2]
[379235188,1755204633425,-150.0,0.00024633,2]
[379235189,1755204633435,-150.0,0.00024633,2]
[379235190,1755204633444,-150.0,0.00024633,2]
[379235191,1755204633453,-150.0,0.00024633,2]
[379235192,1755204633463,-150.0,0.00024633,2]
[379235193,1755204633472,-1000.0,0.00024637,2]
[379235194,1755204633482,-2500.0,0.00024695,2]
[379235195,1755204633491,-750.9,0.0002473,2]
[379235196,1755204633503,-166.93,0.0002478,2]
[379235197,1755204633513,-342.68,0.00024871,2]
[379235198,1755204633522,-583.75,0.0002488,2]
[379235199,1755204633532,-500.0,0.00024885,2]
[379235200,1755204633542,-151.0,0.00024885,2]
[379235201,1755204633552,-3912.20413332,0.000249,2]
[379235202,1755204633565,-12917.77447871,0.000249,2]
[379235203,1755204633575,-337.0,0.00024932,7]
[379235204,1755204633585,-5000.0,0.00024996,2]
[379235205,1755204633594,-337.0,0.00025,7]
[379235206,1755204633603,-10.78176276,0.00025042,2]
[379235207,1755204633615,-989.21823724,0.00025042,2]
[379235208,1755204633624,-150.0,0.00025189,2]
[379235209,1755204633633,-150.0,0.00025274,2]
[379235210,1755204633643,-485.58275327,0.00025289,2]
[379235211,1755204633711,-270.32220248,0.00025289,2]
[379235243,1755204636340,-924.09504425,0.00025289,2]
[379235245,1755204636350,-260.53808604,0.00025303,2]
[379235247,1755204636359,-841.8668697,0.00025395,2]
[379235249,1755204636371,-158.1331303,0.00025395,2]
[379235251,1755204636380,-305.56936016,0.00025418,2]
[379235253,1755204636389,-200.0,0.00025428,2]
[379235255,1755204636398,-60.05751034,0.000255,2]
[379235258,1755204636417,-1210.94248966,0.000255,2]
[379235260,1755204636426,-350.60063429,0.00025533,2]
[379235262,1755204636435,-1000.0,0.00025576,2]
[379235264,1755204636444,-300.0,0.00025644,2]
[379235266,1755204636454,-600.0,0.00025644,2]
[379235268,1755204636463,-160.0,0.00025644,2]
[379235270,1755204636472,-3000.0,0.00025644,2]
[379235272,1755204636481,-277.35679052,0.00025644,2]
[379235273,1755204636491,-151.0,0.00025644,2]
[379235274,1755204636501,-1000.0,0.00025648,2]
[379235275,1755204636510,-395.63190842,0.00025648,2]
[379235276,1755204636519,-1000.0,0.00025657,2]
[379235277,1755204636529,-2886.11133625,0.00025748,7]
[379235282,1755204638291,-389.88866375,0.00025748,7]
[379235283,1755204638300,-440.66318255,0.00025762,2]
[379235284,1755204638310,-1000.0,0.00025852,2]
[379235285,1755204638319,-1000.0,0.00025862,2]
[379235286,1755204638328,-485.69445668,0.00025877,2]
[379235287,1755204638337,-337.0,0.0002589,7]
[379235288,1755204638346,-13987.61076245,0.0002591,2]
[379235289,1755204638356,-150.0,0.00025948,2]
[379235290,1755204638366,-530.72573081,0.00025992,2]
[379235291,1755204638376,-150.0,0.00026001,4]
[379235292,1755204638385,-150.0,0.00026027,2]
[379235293,1755204638395,-150.0,0.00026036,2]
[379235294,1755204638404,-150.0,0.00026063,2]
[379235295,1755204638414,-150.0,0.0002608,2]
[379235296,1755204638424,-500.0,0.00026082,2]
[379235297,1755204638433,-575.75700494,0.00026107,2]
[379235298,1755204638442,-750.9,0.00026118,2]
[379235299,1755204638451,-150.0,0.0002613,2]
[379235300,1755204638461,-150.0,0.00026141,2]
[379235301,1755204638470,-150.0,0.00026145,2]
[379235302,1755204638479,-369.7797607,0.00026147,2]
[379235303,1755204638489,-281.03,0.00026156,2]
[379235304,1755204638498,-150.0,0.00026173,2]
[379235305,1755204638508,-150.0,0.0002619,2]
[379235306,1755204638518,-600.0,0.00026192,2]
[379235307,1755204638527,-160.4248123,0.00026192,2]
[379235308,1755204638536,-150.0,0.00026198,2]
[379235309,1755204638545,-150.0,0.0002621,2]
[379235310,1755204638555,-1000.0,0.00026213,2]
[379235311,1755204638567,-150.0,0.00026217,2]
[379235313,1755204638576,-620.78827907,0.00026221,2]
[379235315,1755204638585,-150.0,0.00026226,2]
[379235317,1755204638595,-150.0,0.00026231,2]
[379235318,1755204638604,-302.86,0.00026232,2]
[379235320,1755204638614,-150.0,0.00026234,2]
[379235322,1755204638623,-150.0,0.0002624,2]
[379235324,1755204638633,-150.0,0.00026256,2]
[379235326,1755204638643,-150.0,0.00026277,2]
[379235328,1755204638652,-150.0,0.00026289,2]
[379235330,1755204638661,-150.0,0.00026316,2]
[379235332,1755204638671,-150.0,0.00026324,2]
[379235334,1755204638680,-1000.0,0.00026329,2]
[379235336,1755204638689,-1000.0,0.00026336,2]
[379235338,1755204638699,-665.8195532,0.00026336,2]
[379235340,1755204638708,-1000.0,0.00026338,2]
[379235342,1755204638717,-150.0,0.00026346,2]
[379235344,1755204638726,-158.73376782,0.00026347,2]
[379235346,1755204638736,-1000.0,0.00026348,2]
[379235348,1755204638745,-1000.0,0.00026359,2]
[379235350,1755204638755,-150.0,0.00026366,2]
[379235352,1755204638764,-1000.0,0.00026375,2]
[379235354,1755204638778,-150.0,0.00026378,2]
[379235356,1755204638787,-150.0,0.0002638,2]
[379235358,1755204638796,-150.0,0.00026389,2]
[379235360,1755204638806,-618.37696523,0.00026396,2]
[379235362,1755204638818,-217.1700214,0.00026396,2]
[379235364,1755204638828,-154.40106163,0.00026396,2]
[379235366,1755204638838,-500.0,0.00026397,7]
[379235368,1755204638851,-500.0,0.00026397,7]
[379235370,1755204638861,-500.0,0.00026397,7]
[379235372,1755204638870,-500.0,0.00026397,7]
[379235374,1755204638879,-500.0,0.00026397,7]
[379235376,1755204638888,-500.0,0.00026397,7]
[379235378,1755204638897,-500.0,0.00026397,7]
[379235380,1755204638906,-500.0,0.00026397,7]
[379235382,1755204638915,-500.0,0.00026397,7]
[379235384,1755204638924,-500.0,0.00026397,7]
[379235385,1755204638934,-500.0,0.00026397,7]
[379235387,1755204638943,-500.0,0.00026397,7]
[379235389,1755204638952,-500.0,0.00026397,7]
[379235392,1755204638962,-500.0,0.00026397,7]
[379235394,1755204638972,-500.0,0.00026397,7]
[379235395,1755204638982,-500.0,0.00026397,7]
[379235396,1755204638991,-500.0,0.00026397,7]
[379235397,1755204639001,-500.0,0.00026397,7]
[379235398,1755204639010,-412.02,0.00026397,7]
[379235399,1755204639019,-500.0,0.00026397,7]
[379235400,1755204639028,-500.0,0.00026397,7]
[379235401,1755204639037,-448.89,0.00026397,7]
[379235402,1755204639047,-160.0,0.00026397,7]
[379235403,1755204639056,-458.13769775,0.00026397,7]
[379235404,1755204639066,-211.86673127,0.00026397,7]
[379235405,1755204639075,-1000.0,0.00026403,2]
[379235407,1755204639085,-150.0,0.00026408,2]
[379235408,1755204639094,-150.0,0.0002641,2]
[379235409,1755204639103,-150.0,0.00026414,2]
[379235410,1755204639113,-150.0,0.00026415,2]
[379235411,1755204639122,-150.0,0.00026419,2]
[379235412,1755204639131,-150.0,0.00026423,2]
[379235413,1755204639141,-150.0,0.00026423,2]
[379235414,1755204639150,-150.0,0.00026424,2]
[379235415,1755204639159,-150.0,0.00026426,2]
[379235416,1755204639168,-150.0,0.0002643,2]
[379235417,1755204639178,-1245.0,0.0002643,2]
[379235418,1755204639187,-150.0,0.00026436,2]
[379235419,1755204639197,-150.0,0.00026437,2]
[379235420,1755204639206,-1000.0,0.00026442,2]
[379235421,1755204639216,-150.0,0.00026448,2]
[379235422,1755204639226,-710.85082733,0.00026451,2]
[379235423,1755204639235,-3274.0,0.00026462,2]
[379235424,1755204639245,-1000.0,0.0002648,2]
[379235425,1755204639255,-150.0,0.00026487,2]
[379235426,1755204639264,-150.0,0.00026504,2]
[379235427,1755204639274,-71049.24,0.00026508,14]
[379235428,1755204639283,-150.0,0.00026517,2]
[379235429,1755204639293,-150.0,0.00026524,2]
[379235430,1755204639302,-150.0,0.00026564,2]